fUST/lending_fUST_20240822
["ID","MTS","AMOUNT","RATE_DAILY","PERIOD"]
[335581468,1724339475176,-500.0,0.00021917,7]
[335581469,1724339475187,-500.0,0.00021917,7]
[335581470,1724339475199,-500.0,0.00021917,7]
[335581471,1724339475212,-597.926518,0.00021917,2]
[335581472,1724339475225,-1829.34,0.00021917,7]
[335581473,1724339475237,-593.85,0.00021917,7]
[335581474,1724339475249,-500.0,0.00021917,7]
[335581475,1724339475262,-500.0,0.00021917,7]
[335581476,1724339475274,-770.75,0.00021917,7]
[335581477,1724339475286,-500.0,0.00021917,7]
[335581478,1724339475297,-500.0,0.00021917,7]
[335581479,1724339475308,-500.0,0.00021917,7]
[335581480,1724339475319,-500.0,0.00021917,7]
[335581481,1724339475332,-677.91,0.00021917,7]
[335581482,1724339475345,-500.0,0.00021917,7]
[335581483,1724339475356,-500.0,0.00021917,7]
[335581484,1724339475367,-508.61,0.00021917,7]
[335581485,1724339475379,-500.0,0.00021917,7]
[335581486,1724339475391,-500.0,0.00021917,7]
[335581487,1724339475405,-808.41,0.00021917,7]
[335581488,1724339475418,-1136.83,0.00021917,7]
[335581489,1724339475432,-500.0,0.00021917,7]
[335581490,1724339475445,-500.0,0.00021917,7]
[335581491,1724339475458,-500.0,0.00021917,7]
[335581492,1724339475469,-1173.73,0.00021917,7]
[335581493,1724339475480,-500.0,0.00021917,7]
[335581494,1724339475743,-957.36,0.00021917,7]
[335581495,1724339475758,-500.0,0.00021917,7]
[335581496,1724339475770,-558.68,0.00021917,7]
[335581497,1724339475779,-500.0,0.00021917,7]
[335581498,1724339475788,-506.08,0.00021917,7]
[335581499,1724339475798,-500.0,0.00021917,7]
[335581500,1724339475807,-500.0,0.00021917,7]
[335581501,1724339475816,-949.84,0.00021917,7]
[335581502,1724339475825,-689.06,0.00021917,7]
[335581503,1724339475835,-500.0,0.00021917,7]
[335581504,1724339475845,-500.0,0.00021917,7]
[335581505,1724339475854,-500.0,0.00021917,7]
[335581506,1724339475863,-500.0,0.00021917,7]
[335581507,1724339475873,-500.0,0.00021917,7]
[335581508,1724339475882,-721.62,0.00021917,7]
[335581509,1724339475892,-500.0,0.00021917,7]
[335581510,1724339475901,-500.0,0.00021917,7]
[335581511,1724339475910,-505.1,0.00021917,7]
[335581512,1724339475920,-500.0,0.00021917,7]
[335581513,1724339475929,-997.84,0.00021917,7]
[335581514,1724339475939,-500.0,0.00021917,7]
[335581515,1724339475948,-508.78,0.00021917,7]
[335581516,1724339475957,-750.8,0.00021917,7]
[335581517,1724339475967,-530.884675,0.00021917,7]
[335581518,1724339475976,-616.62,0.00021917,7]
[335581519,1724339475988,-500.0,0.00021917,7]
[335581520,1724339475997,-503.01,0.00021917,7]
[335581521,1724339476007,-538.87,0.00021917,7]
[335581522,1724339476018,-500.0,0.00021917,7]
[335581523,1724339476029,-500.0,0.00021917,7]
[335581524,1724339476038,-700.96,0.00021917,7]
[335581525,1724339476048,-500.0,0.00021917,7]
[335581526,1724339476057,-500.0,0.00021917,7]
[335581527,1724339476068,-812.56,0.00021917,7]
[335581528,1724339476079,-593.73,0.00021917,7]
[335581529,1724339476089,-497.90517348,0.00021917,7]
[335581530,1724339476099,-534.86,0.00021917,7]
[335581531,1724339476108,-500.0,0.00021917,7]
[335581532,1724339476117,-500.0,0.00021917,7]
[335581533,1724339476126,-500.0,0.00021917,7]
[335581534,1724339476135,-500.0,0.00021917,7]
[335581535,1724339476145,-666.03,0.00021917,7]
[335581536,1724339476155,-573.84,0.00021917,7]
[335581537,1724339476164,-500.0,0.00021917,7]
[335581538,1724339476174,-563.28174158,0.00021917,7]
[335581539,1724339476183,-500.0,0.00021917,7]
[335581540,1724339476192,-500.0,0.00021917,7]
[335581541,1724339476201,-500.0,0.00021917,7]
[335581542,1724339476210,-500.0,0.00021917,7]
[335581543,1724339476220,-636.8,0.00021917,7]
[335581544,1724339476229,-500.0,0.00021917,7]
[335581545,1724339476238,-500.0,0.00021917,7]
[335581546,1724339476248,-500.0,0.00021917,7]
[335581547,1724339476258,-500.0,0.00021917,7]
[335581548,1724339476267,-540.42,0.00021917,7]
[335581549,1724339476277,-500.0,0.00021917,7]
[335581550,1724339476286,-526.7976209,0.00021917,7]
[335581551,1724339476296,-284.18597272,0.00021917,7]
[335581552,1724339476306,-500.0,0.00021917,7]
[335581553,1724339476315,-500.0,0.00021917,7]
[335581554,1724339476326,-500.0,0.00021917,7]
[335581555,1724339476336,-500.0,0.00021917,7]
[335581556,1724339476345,-927.23,0.00021917,7]
[335581557,1724339476354,-500.0,0.00021917,7]
[335581558,1724339476364,-1102.72,0.00021917,7]
[335581559,1724339476375,-500.0,0.00021917,7]
[335581560,1724339476384,-500.0,0.00021917,7]
[335581561,1724339476393,-500.0,0.00021917,7]
[335581562,1724339476403,-886.44,0.00021917,7]
[335581563,1724339476412,-675.41,0.00021917,7]
[335581564,1724339476422,-500.0,0.00021917,7]
[335581565,1724339476432,-500.0,0.00021917,7]
[335581566,1724339476442,-500.0,0.00021917,7]
[335581567,1724339476452,-1608.05,0.00021917,7]
[335581568,1724339476462,-3402.94,0.00021917,7]
[335581569,1724339476471,-591.42,0.00021917,7]
[335581570,1724339476481,-500.0,0.00021917,7]
[335581571,1724339476491,-1589.93,0.00021917,7]
[335581572,1724339476501,-565.15,0.00021917,7]
[335581573,1724339476511,-2482.34,0.00021917,7]
[335581574,1724339476520,-288.51558499,0.00021917,7]
[335581575,1724339476531,-500.0,0.00021917,7]
[335581576,1724339476551,-500.0,0.00021917,7]
[335581577,1724339476561,-1548.5,0.00021917,7]
[335581578,1724339476570,-500.0,0.00021917,7]
[335581579,1724339476580,-500.0,0.00021917,7]
[335581580,1724339476590,-500.0,0.00021917,7]
[335581581,1724339476599,-595.42,0.00021917,7]
[335581582,1724339476609,-836.78,0.00021917,7]
[335581583,1724339476619,-4470.39,0.00021917,7]
[335581584,1724339476630,-500.0,0.00021917,7]
[335581585,1724339476641,-500.0,0.00021917,7]
[335581586,1724339476651,-902.56,0.00021917,7]
[335581587,1724339476662,-978.97,0.00021917,7]
[335581588,1724339476673,-500.0,0.00021917,7]
[335581589,1724339476684,-500.0,0.00021917,7]
[335581590,1724339476694,-2468.18,0.00021917,7]
[335581591,1724339476706,-500.0,0.00021917,7]
[335581592,1724339476716,-500.0,0.00021917,7]
[335581593,1724339476727,-500.0,0.00021917,7]
[335581594,1724339476740,-747.31,0.00021917,7]
[335581595,1724339476750,-500.0,0.00021917,7]
[335581596,1724339476761,-500.0,0.00021917,7]
[335581597,1724339476773,-500.0,0.00021917,7]
[335581598,1724339476783,-500.0,0.00021917,7]
[335581599,1724339476792,-500.0,0.00021917,7]
[335581600,1724339476801,-500.0,0.00021917,7]
[335581601,1724339476811,-807.69,0.00021917,7]
[335581602,1724339476821,-637.58,0.00021917,7]
[335581603,1724339476831,-500.0,0.00021917,7]
[335581604,1724339476841,-500.0,0.00021917,7]
[335581605,1724339476850,-524.22,0.00021917,7]
[335581606,1724339476860,-500.0,0.00021917,7]
[335581607,1724339476870,-500.0,0.00021917,7]
[335581608,1724339476880,-1635.87,0.00021917,7]
[335581609,1724339476889,-500.0,0.00021917,7]
[335581610,1724339476899,-500.0,0.00021917,7]
[335581611,1724339476908,-500.0,0.00021917,7]
[335581612,1724339476918,-703.91,0.00021917,7]
[335581613,1724339476928,-2424.95,0.00021917,7]
[335581614,1724339476939,-975.92,0.00021917,7]
[335581615,1724339476949,-725.67,0.00021917,7]
[335581616,1724339476958,-512.58653258,0.00021917,7]
[335581617,1724339476968,-941.3,0.00021917,7]
[335581618,1724339476977,-500.0,0.00021917,7]
[335581619,1724339476990,-594.62,0.00021917,7]
[335581620,1724339477000,-2179.41,0.00021917,7]
[335581621,1724339477009,-500.0,0.00021917,7]
[335581622,1724339477018,-500.0,0.00021917,7]
[335581623,1724339477028,-500.0,0.00021917,7]
[335581624,1724339477039,-572.99,0.00021917,7]
[335581625,1724339477048,-500.0,0.00021917,7]
[335581626,1724339477059,-5331.32,0.00021917,7]
[335581627,1724339477069,-4235.92,0.00021917,7]
[335581628,1724339477078,-566.83,0.00021917,7]
[335581629,1724339477087,-500.0,0.00021917,7]
[335581630,1724339477097,-783.99,0.00021917,7]
[335581631,1724339477107,-500.0,0.00021917,7]
[335581632,1724339477117,-2414.51,0.00021917,7]
[335581633,1724339477127,-1660.58,0.00021917,7]
[335581634,1724339477137,-584.34,0.00021917,7]
[335581635,1724339477147,-2258.84,0.00021917,7]
[335581636,1724339477156,-1526.82,0.00021917,7]
[335581637,1724339477165,-500.0,0.00021917,7]
[335581638,1724339477175,-500.0,0.00021917,7]
[335581639,1724339477188,-1119.82,0.00021917,7]
[335581640,1724339477198,-599.87,0.00021917,7]
[335581641,1724339477207,-500.0,0.00021917,7]
[335581642,1724339477217,-680.9,0.00021917,7]
[335581643,1724339477227,-595.25,0.00021917,7]
[335581644,1724339477236,-500.0,0.00021917,7]
[335581645,1724339477247,-788.88,0.00021917,7]
[335581646,1724339477257,-588.02,0.00021917,7]
[335581647,1724339477268,-500.0,0.00021917,7]
[335581648,1724339477278,-500.0,0.00021917,7]
[335581649,1724339477288,-857.06,0.00021917,7]
[335581650,1724339477297,-621.96,0.00021917,7]
[335581651,1724339477307,-712.22,0.00021917,7]
[335581652,1724339477316,-5809.49,0.00021917,7]
[335581653,1724339477326,-832.86,0.00021917,7]
[335581654,1724339477335,-500.0,0.00021917,7]
[335581655,1724339477344,-500.0,0.00021917,7]
[335581656,1724339477354,-500.0,0.00021917,7]
[335581657,1724339477364,-1029.54,0.00021917,7]
[335581658,1724339477373,-584.49,0.00021917,7]
[335581659,1724339477383,-577.9,0.00021917,7]
[335581660,1724339477392,-500.0,0.00021917,7]
[335581661,1724339477402,-614.54,0.00021917,7]
[335581662,1724339477411,-967.72,0.00021917,7]
[335581663,1724339477421,-673.61,0.00021917,7]
[335581664,1724339477432,-500.0,0.00021917,7]
[335581665,1724339477441,-564.78,0.00021917,7]
[335581666,1724339477453,-778.36,0.00021917,7]
[335581667,1724339477463,-1091.36,0.00021917,7]
[335581668,1724339477473,-384.10237566,0.00021917,7]
[335581669,1724339477483,-500.0,0.00021917,7]
[335581670,1724339477494,-500.0,0.00021917,7]
[335581671,1724339477505,-500.0,0.00021917,7]
[335581672,1724339477516,-1095.73,0.00021917,7]
[335581673,1724339477528,-500.0,0.00021917,7]
[335581674,1724339477538,-1210.45,0.00021917,7]
[335581675,1724339477549,-500.0,0.00021917,7]
[335581676,1724339477558,-500.0,0.00021917,7]
[335581677,1724339477569,-2512.15,0.00021917,7]
[335581678,1724339477579,-627.5,0.00021917,7]
[335581679,1724339477588,-867.29,0.00021917,7]
[335581680,1724339477598,-4673.84,0.00021917,7]
[335581681,1724339477607,-500.0,0.00021917,7]
[335581682,1724339477617,-948.0,0.00021917,7]
[335581683,1724339477627,-690.72,0.00021917,7]
[335581684,1724339477637,-500.0,0.00021917,7]
[335581685,1724339477647,-500.0,0.00021917,7]
[335581686,1724339477657,-1247.76,0.00021917,7]
[335581687,1724339477667,-500.0,0.00021917,7]
[335581688,1724339477676,-500.0,0.00021917,7]
[335581689,1724339477685,-500.0,0.00021917,7]
[335581690,1724339477695,-500.0,0.00021917,7]
[335581691,1724339477706,-2682.64,0.00021917,7]
[335581692,1724339477715,-697.49,0.00021917,7]
[335581693,1724339477726,-1635.27,0.00021917,7]
[335581694,1724339477736,-708.45,0.00021917,7]
[335581695,1724339477746,-500.0,0.00021917,2]
[335581696,1724339477756,-2663.2,0.00021917,7]
[335581697,1724339477768,-500.0,0.00021917,7]
[335581698,1724339477777,-500.0,0.00021917,7]
[335581699,1724339477788,-500.0,0.00021917,7]
[335581700,1724339477798,-1130.78,0.00021917,7]
[335581701,1724339477808,-3229.35,0.00021917,7]
[335581702,1724339477818,-391.0067614,0.00021917,7]
[335581703,1724339477828,-998.77,0.00021917,7]
[335581704,1724339477838,-500.0,0.00021917,7]
[335581705,1724339477847,-8888.5071252,0.00021918,2]
[335581706,1724339477857,-160.0,0.00021918,2]
[335581707,1724339477867,-461.935423,0.00021918,7]
[335581708,1724339477877,-461.935423,0.00021918,7]
[335581709,1724339477887,-225.457527,0.00021918,7]
[335581710,1724339477898,-225.457527,0.00021918,7]
[335581711,1724339477908,-335.2,0.0002195,2]
[335581712,1724339477918,-3200.0,0.00022103,2]
[335581713,1724339477928,-150.0,0.00022103,2]
[335581714,1724339477938,-2588.07,0.000222,14]
[335581715,1724339477948,-2149.31,0.000222,7]
[335581716,1724339477957,-182.5,0.000224,2]
[335581717,1724339477967,-300.0,0.000224,10]
[335581718,1724339477978,-160.0,0.00022464,2]
[335581719,1724339477992,-550.0,0.00022464,2]
[335581720,1724339478003,-500.0,0.00022465,7]
[335581721,1724339478013,-500.0,0.00022465,7]
[335581722,1724339478023,-629.36,0.00022465,7]
[335581723,1724339478033,-987.26,0.00022465,7]
[335581724,1724339478042,-500.0,0.00022465,7]
[335581725,1724339478052,-500.0,0.00022465,7]
[335581726,1724339478062,-592.31,0.00022465,7]
[335581727,1724339478072,-599.77,0.00022465,7]
[335581728,1724339478082,-672.96,0.00022465,7]
[335581729,1724339478092,-504.91,0.00022465,7]
[335581730,1724339478102,-175.35094598,0.00022465,2]
[335581731,1724339478112,-500.0,0.00022465,7]
[335581732,1724339478122,-376.05182751,0.00022465,7]
[335581733,1724339478132,-190.22946139,0.00022465,7]
[335581734,1724339478142,-500.0,0.00022465,7]
[335581735,1724339478152,-512.51443307,0.00022465,7]
[335581736,1724339478162,-628.36,0.00022465,7]
[335581737,1724339478172,-500.0,0.00022465,7]
[335581738,1724339478181,-500.0,0.00022465,7]
[335581739,1724339478192,-2197.46,0.00022465,7]
[335581740,1724339478201,-240.41676102,0.00022465,7]
[335581741,1724339478211,-500.0,0.00022465,7]
[335581742,1724339478221,-500.0,0.00022465,7]
[335581743,1724339478230,-500.0,0.00022465,7]
[335581744,1724339478242,-500.0,0.00022465,7]
[335581745,1724339478251,-500.0,0.00022465,7]
[335581746,1724339478261,-500.0,0.00022465,7]
[335581747,1724339478271,-452.356145,0.00022465,7]
[335581748,1724339478281,-452.356145,0.00022465,7]
[335581749,1724339478291,-603.66,0.00022465,7]
[335581750,1724339478300,-500.0,0.00022465,7]
[335581751,1724339478310,-500.0,0.00022465,7]
[335581752,1724339478320,-500.0,0.00022465,7]
[335581753,1724339478331,-500.0,0.00022465,7]
[335581754,1724339478341,-500.0,0.00022465,7]
[335581755,1724339478351,-500.0,0.00022465,7]
[335581756,1724339478360,-500.0,0.00022465,7]
[335581757,1724339478371,-500.0,0.00022465,7]
[335581758,1724339478381,-500.0,0.00022465,7]
[335581759,1724339478391,-500.0,0.00022465,7]
[335581760,1724339478401,-220.04244721,0.00022465,7]
[335581761,1724339478410,-500.0,0.00022465,7]
[335581762,1724339478420,-453.58947808,0.00022465,7]
[335581763,1724339478431,-430.57861448,0.00022465,7]
[335581764,1724339478441,-500.0,0.00022465,7]
[335581765,1724339478451,-2020.97,0.00022465,7]
[335581766,1724339478461,-500.0,0.00022465,7]
[335581767,1724339478471,-500.0,0.00022465,7]
[335581768,1724339478481,-500.0,0.00022465,7]
[335581769,1724339478490,-500.0,0.00022465,7]
[335581770,1724339478500,-670.05,0.00022465,7]
[335581771,1724339478512,-500.0,0.00022465,7]
[335581772,1724339478521,-500.0,0.00022465,7]
[335581773,1724339478530,-500.0,0.00022465,7]
[335581774,1724339478540,-500.0,0.00022465,7]
[335581775,1724339478549,-522.89,0.00022465,7]
[335581776,1724339478559,-500.0,0.00022465,7]
[335581777,1724339478569,-500.0,0.00022465,7]
[335581778,1724339478578,-927.27,0.00022465,7]
[335581779,1724339478588,-500.0,0.00022465,7]
[335581780,1724339478598,-500.0,0.00022465,7]
[335581781,1724339478607,-500.0,0.00022465,7]
[335581782,1724339478617,-500.0,0.00022465,7]
[335581783,1724339478627,-500.0,0.00022465,7]
[335581784,1724339478637,-719.46,0.00022465,7]
[335581785,1724339478647,-500.0,0.00022465,7]
[335581786,1724339478656,-500.0,0.00022465,7]
[335581787,1724339478665,-500.0,0.00022465,7]
[335581788,1724339478675,-2364.22,0.00022465,7]
[335581789,1724339478684,-500.0,0.00022465,7]
[335581790,1724339478694,-605.15,0.00022465,2]
[335581791,1724339478703,-646.27993438,0.00022465,7]
[335581792,1724339478713,-640.98,0.00022465,7]
[335581793,1724339478723,-500.0,0.00022465,7]
[335581794,1724339478732,-638.49,0.00022465,7]
[335581795,1724339478741,-500.0,0.00022465,7]
[335581796,1724339478751,-500.0,0.00022465,7]
[335581797,1724339478761,-501.45,0.00022465,7]
[335581798,1724339478777,-500.0,0.00022465,7]
[335581799,1724339478790,-500.0,0.00022465,7]
[335581800,1724339478800,-200.0,0.00022465,7]
[335581801,1724339478809,-645.17,0.00022465,7]
[335581802,1724339478818,-500.0,0.00022465,7]
[335581803,1724339478827,-513.97,0.00022465,7]
[335581804,1724339478836,-500.0,0.00022465,7]
[335581805,1724339478845,-1100.96,0.00022465,7]
[335581806,1724339478854,-500.0,0.00022465,7]
[335581807,1724339478864,-500.0,0.00022465,7]
[335581808,1724339478873,-564.35,0.00022465,7]
[335581809,1724339478883,-500.0,0.00022465,7]
[335581810,1724339478892,-500.0,0.00022465,7]
[335581811,1724339478901,-500.0,0.00022465,7]
[335581812,1724339478911,-500.0,0.00022465,7]
[335581813,1724339478920,-500.0,0.00022465,7]
[335581814,1724339478930,-500.0,0.00022465,7]
[335581815,1724339478939,-500.0,0.00022465,7]
[335581816,1724339478950,-500.0,0.00022465,7]
[335581817,1724339478960,-500.0,0.00022465,7]
[335581818,1724339478969,-500.0,0.00022465,7]
[335581819,1724339478980,-500.0,0.00022465,7]
[335581820,1724339478993,-789.21,0.00022465,7]
[335581821,1724339479166,-500.0,0.00022465,7]
[335581822,1724339479177,-1165.78,0.00022465,7]
[335581823,1724339479187,-500.0,0.00022465,7]
[335581824,1724339479196,-500.0,0.00022465,7]
[335581825,1724339479205,-500.0,0.00022465,7]
[335581826,1724339479215,-500.0,0.00022465,7]
[335581827,1724339479224,-1829.34,0.00022465,7]
[335581828,1724339479233,-593.85,0.00022465,7]
[335581829,1724339479244,-500.0,0.00022465,7]
[335581830,1724339479253,-500.0,0.00022465,7]
[335581831,1724339479267,-770.75,0.00022465,7]
[335581832,1724339479276,-500.0,0.00022465,7]
[335581833,1724339479286,-500.0,0.00022465,7]
[335581834,1724339479295,-500.0,0.00022465,7]
[335581835,1724339479306,-500.0,0.00022465,7]
[335581836,1724339479316,-677.91,0.00022465,7]
[335581837,1724339479325,-500.0,0.00022465,7]
[335581838,1724339479335,-500.0,0.00022465,7]
[335581839,1724339479344,-508.61,0.00022465,7]
[335581840,1724339479354,-506.34285762,0.00022465,7]
[335581841,1724339479363,-500.0,0.00022465,7]
[335581842,1724339479373,-808.41,0.00022465,7]
[335581843,1724339479383,-1136.83,0.00022465,7]
[335581844,1724339479393,-500.0,0.00022465,7]
[335581845,1724339479403,-500.0,0.00022465,7]
[335581846,1724339479414,-500.0,0.00022465,7]
[335581847,1724339479424,-1173.73,0.00022465,7]
[335581848,1724339479433,-500.0,0.00022465,7]
[335581849,1724339479444,-957.36,0.00022465,7]
[335581850,1724339479454,-500.0,0.00022465,7]
[335581851,1724339479464,-558.68,0.00022465,7]
[335581852,1724339479474,-500.0,0.00022465,7]
[335581853,1724339479484,-506.08,0.00022465,7]
[335581854,1724339479493,-500.0,0.00022465,7]
[335581855,1724339479503,-500.0,0.00022465,7]
[335581856,1724339479512,-949.84,0.00022465,7]
[335581857,1724339479522,-689.06,0.00022465,7]
[335581858,1724339479532,-500.0,0.00022465,7]
[335581859,1724339479542,-500.0,0.00022465,7]
[335581860,1724339479552,-500.0,0.00022465,7]
[335581861,1724339479563,-500.0,0.00022465,7]
[335581862,1724339479573,-500.0,0.00022465,7]
[335581863,1724339479583,-721.62,0.00022465,7]
[335581864,1724339479592,-500.0,0.00022465,7]
[335581865,1724339479602,-500.0,0.00022465,7]
[335581866,1724339479612,-505.1,0.00022465,7]
[335581867,1724339479622,-500.0,0.00022465,7]
[335581868,1724339479632,-997.84,0.00022465,7]
[335581869,1724339479642,-500.0,0.00022465,7]
[335581870,1724339479652,-508.78,0.00022465,7]
[335581871,1724339479661,-750.8,0.00022465,7]
[335581872,1724339479672,-616.62,0.00022465,7]
[335581873,1724339479682,-500.0,0.00022465,7]
[335581874,1724339479692,-503.01,0.00022465,7]
[335581875,1724339479702,-538.87,0.00022465,7]
[335581876,1724339479712,-430.0,0.00022465,7]
[335581877,1724339479722,-500.0,0.00022465,7]
[335581878,1724339479731,-700.96,0.00022465,7]
[335581879,1724339479741,-500.0,0.00022465,7]
[335581880,1724339479751,-500.0,0.00022465,7]
[335581881,1724339479760,-812.56,0.00022465,7]
[335581882,1724339479770,-593.73,0.00022465,7]
[335581883,1724339479779,-534.86,0.00022465,7]
[335581884,1724339479789,-500.0,0.00022465,7]
[335581885,1724339479799,-500.0,0.00022465,7]
[335581886,1724339479809,-500.0,0.00022465,7]
[335581887,1724339479818,-500.0,0.00022465,7]
[335581888,1724339479828,-666.03,0.00022465,7]
[335581889,1724339479838,-573.84,0.00022465,7]
[335581890,1724339479848,-500.0,0.00022465,7]
[335581891,1724339479858,-500.0,0.00022465,7]
[335581892,1724339479868,-500.0,0.00022465,7]
[335581893,1724339479878,-500.0,0.00022465,7]
[335581894,1724339479888,-500.0,0.00022465,7]
[335581895,1724339479898,-636.8,0.00022465,7]
[335581896,1724339479907,-500.0,0.00022465,7]
[335581897,1724339479917,-500.0,0.00022465,7]
[335581898,1724339479926,-500.0,0.00022465,7]
[335581899,1724339479936,-500.0,0.00022465,7]
[335581900,1724339479947,-540.42,0.00022465,7]
[335581901,1724339479956,-500.0,0.00022465,7]
[335581902,1724339479967,-500.0,0.00022465,7]
[335581903,1724339479977,-488.85134289,0.00022465,7]
[335581904,1724339479988,-500.0,0.00022465,7]
[335581905,1724339479998,-500.0,0.00022465,7]
[335581906,1724339480008,-927.23,0.00022465,7]
[335581907,1724339480019,-500.0,0.00022465,7]
[335581908,1724339480030,-1102.72,0.00022465,7]
[335581909,1724339480039,-500.0,0.00022465,7]
[335581910,1724339480049,-500.0,0.00022465,7]
[335581911,1724339480058,-500.0,0.00022465,7]
[335581912,1724339480071,-886.44,0.00022465,7]
[335581913,1724339480081,-675.41,0.00022465,7]
[335581914,1724339480091,-500.0,0.00022465,7]
[335581915,1724339480100,-500.0,0.00022465,7]
[335581916,1724339480110,-500.0,0.00022465,7]
[335581917,1724339480119,-1608.05,0.00022465,7]
[335581918,1724339480129,-3402.94,0.00022465,7]
[335581919,1724339480139,-591.42,0.00022465,7]
[335581920,1724339480149,-500.0,0.00022465,7]
[335581921,1724339480159,-1589.93,0.00022465,7]
[335581922,1724339480168,-565.15,0.00022465,7]
[335581923,1724339480178,-2482.34,0.00022465,7]
[335581924,1724339480190,-500.0,0.00022465,7]
[335581925,1724339480201,-500.0,0.00022465,7]
[335581926,1724339480211,-1548.5,0.00022465,7]
[335581927,1724339480223,-500.0,0.00022465,7]
[335581928,1724339480233,-500.0,0.00022465,7]
[335581929,1724339480244,-500.0,0.00022465,7]
[335581930,1724339480255,-595.42,0.00022465,7]
[335581931,1724339480265,-836.78,0.00022465,7]
[335581932,1724339480275,-4470.39,0.00022465,7]
[335581933,1724339480285,-600.86192541,0.00022465,7]
[335581934,1724339480296,-500.0,0.00022465,7]
[335581935,1724339480306,-902.56,0.00022465,7]
[335581936,1724339480315,-978.97,0.00022465,7]
[335581937,1724339480324,-500.0,0.00022465,7]
[335581938,1724339480334,-500.0,0.00022465,7]
[335581939,1724339480343,-2468.18,0.00022465,7]
[335581940,1724339480354,-500.0,0.00022465,7]
[335581941,1724339480364,-500.0,0.00022465,7]
[335581942,1724339480373,-531.56750606,0.00022465,7]
[335581943,1724339480382,-747.31,0.00022465,7]
[335581944,1724339480392,-500.0,0.00022465,7]
[335581945,1724339480401,-500.0,0.00022465,7]
[335581946,1724339480411,-500.0,0.00022465,7]
[335581947,1724339480421,-500.0,0.00022465,7]
[335581948,1724339480430,-520.13252259,0.00022465,7]
[335581949,1724339480439,-500.0,0.00022465,7]
[335581950,1724339480449,-807.69,0.00022465,7]
[335581951,1724339480459,-637.58,0.00022465,7]
[335581952,1724339480469,-532.3098905,0.00022465,7]
[335581953,1724339480480,-500.0,0.00022465,7]
[335581954,1724339480490,-524.22,0.00022465,7]
[335581955,1724339480500,-533.28902493,0.00022465,7]
[335581956,1724339480510,-500.0,0.00022465,7]
[335581957,1724339480519,-1635.87,0.00022465,7]
[335581958,1724339480530,-500.0,0.00022465,7]
[335581959,1724339480540,-500.0,0.00022465,7]
[335581960,1724339480550,-500.0,0.00022465,7]
[335581961,1724339480560,-703.91,0.00022465,7]
[335581962,1724339480569,-2424.95,0.00022465,7]
[335581963,1724339480579,-975.92,0.00022465,7]
[335581964,1724339480589,-725.67,0.00022465,7]
[335581965,1724339480598,-941.3,0.00022465,7]
[335581966,1724339480608,-500.0,0.00022465,7]
[335581967,1724339480617,-594.62,0.00022465,7]